[Event "Early-Titled-Tuesday-Blitz-February-06-2024"]
[Site "Chess.com"]
[Date "2024.02.06"]
[Round "1"]
[White "Onischuk_V"]
[Black "AccioChess"]
[Result "1-0"]
[WhiteElo "2808"]
[BlackElo "2447"]
[TimeControl "180+1"]
[EndTime "8:07:28 PST"]
[Termination "Onischuk_V won on time"]

1. e4 {[%clk 0:02:46.7]} 1... e5 {[%clk 0:02:57.5]} 2. Nf3 {[%clk 0:02:45.9]}
2... Nc6 {[%clk 0:02:55.5]} 3. Bc4 {[%clk 0:02:43.6]} 3... Nf6 {[%clk
0:02:53.8]} 4. d3 {[%clk 0:02:40.7]} 4... Be7 {[%clk 0:02:53.2]} 5. O-O {[%clk
0:02:31.2]} 5... O-O {[%clk 0:02:51.6]} 6. Re1 {[%clk 0:02:31.8]} 6... d6 {[%clk
0:02:50.1]} 7. a4 {[%clk 0:02:31]} 7... Be6 {[%clk 0:02:40.7]} 8. Nc3 {[%clk
0:02:30.5]} 8... Qd7 {[%clk 0:02:32.6]} 9. Ng5 {[%clk 0:02:25.4]} 9... Bxc4
{[%clk 0:02:27.5]} 10. dxc4 {[%clk 0:02:25.1]} 10... Nd4 {[%clk 0:02:22.4]} 11.
Be3 {[%clk 0:02:20.7]} 11... h6 {[%clk 0:02:18.8]} 12. Nf3 {[%clk 0:02:20.9]}
12... Nxf3+ {[%clk 0:02:16.4]} 13. Qxf3 {[%clk 0:02:21.2]} 13... c6 {[%clk
0:02:12.7]} 14. Rad1 {[%clk 0:02:20.2]} 14... Qe6 {[%clk 0:02:12.5]} 15. b3
{[%clk 0:02:20.1]} 15... Nd7 {[%clk 0:02:07.9]} 16. Rd3 {[%clk 0:02:04.7]} 16...
f5 {[%clk 0:02:06.6]} 17. Qh3 {[%clk 0:02:04.1]} 17... Rf6 {[%clk 0:01:51.4]}
18. f3 {[%clk 0:01:59.4]} 18... a6 {[%clk 0:01:35.7]} 19. exf5 {[%clk
0:01:53.7]} 19... Rxf5 {[%clk 0:01:32.3]} 20. Red1 {[%clk 0:01:53.8]} 20... Raf8
{[%clk 0:01:30.3]} 21. Ne4 {[%clk 0:01:53.2]} 21... Nc5 {[%clk 0:01:09.5]} 22.
Bxc5 {[%clk 0:01:48.6]} 22... dxc5 {[%clk 0:01:08.5]} 23. Rd7 {[%clk 0:01:39]}
23... Bg5 {[%clk 0:00:15.5]} 24. Ng3 {[%clk 0:01:23.8]} 24... Be3+ {[%clk
0:00:14.5]} 25. Kh1 {[%clk 0:01:23.5]} 25... Bd4 {[%clk 0:00:13.6]} 26. Nxf5
{[%clk 0:01:23]} 26... Rxf5 {[%clk 0:00:10.3]} 27. Rxb7 {[%clk 0:01:22.9]} 27...
Qg6 {[%clk 0:00:10.4]} 28. Rb8+ {[%clk 0:00:56.2]} 28... Kh7 {[%clk 0:00:10.1]}
29. Qh4 {[%clk 0:00:52.5]} 29... Rf4 {[%clk 0:00:09.2]} 30. Qe1 {[%clk
0:00:19.1]} 30... e4 {[%clk 0:00:07]} 31. fxe4 {[%clk 0:00:16]} 31... Rxe4
{[%clk 0:00:07.3]} 32. Qg3 {[%clk 0:00:16]} 32... Qf5 {[%clk 0:00:06.4]} 33. Qf3
{[%clk 0:00:15.4]} 33... Qe6 {[%clk 0:00:05.7]} 34. Qd3 {[%clk 0:00:15]} 34...
g6 {[%clk 0:00:03.2]} 35. Rf8 {[%clk 0:00:14.6]} 35... Re1+ {[%clk 0:00:01.8]}
36. Rxe1 {[%clk 0:00:14.8]} 36... Qxe1+ {[%clk 0:00:01.3]} 37. Rf1 {[%clk
0:00:15.5]} 1-0

[Event "Early-Titled-Tuesday-Blitz-February-06-2024"]
[Site "Chess.com"]
[Date "2024.02.06"]
[Round "1"]
[White "Dedic8"]
[Black "Bodnar_Mykola"]
[Result "1-0"]
[WhiteElo "2876"]
[BlackElo "2478"]
[TimeControl "180+1"]
[EndTime "8:07:29 PST"]
[Termination "Dedic8 won on time"]

1. d4 {[%clk 0:03:00.9]} 1... Nf6 {[%clk 0:02:57]} 2. c4 {[%clk 0:03:01.3]} 2...
e6 {[%clk 0:02:56.9]} 3. Nc3 {[%clk 0:03:02]} 3... Bb4 {[%clk 0:02:56.9]} 4. e3
{[%clk 0:03:02.4]} 4... O-O {[%clk 0:02:54.7]} 5. Bd3 {[%clk 0:03:02.8]} 5... d5
{[%clk 0:02:51.8]} 6. a3 {[%clk 0:03:02.6]} 6... Bd6 {[%clk 0:02:51]} 7. c5
{[%clk 0:03:02.2]} 7... Be7 {[%clk 0:02:50.6]} 8. Nf3 {[%clk 0:03:02.5]} 8... b6
{[%clk 0:02:49.9]} 9. b4 {[%clk 0:03:01.6]} 9... a5 {[%clk 0:02:49.4]} 10. Bb2
{[%clk 0:03:01]} 10... c6 {[%clk 0:02:47.2]} 11. O-O {[%clk 0:02:59.9]} 11...
Ba6 {[%clk 0:02:44.8]} 12. Bxa6 {[%clk 0:02:50.1]} 12... Nxa6 {[%clk 0:02:43.5]}
13. Ne5 {[%clk 0:02:48.7]} 13... Qc8 {[%clk 0:02:22.9]} 14. Na4 {[%clk
0:02:35.7]} 14... Bd8 {[%clk 0:02:11.4]} 15. cxb6 {[%clk 0:02:26.5]} 15... axb4
{[%clk 0:02:05.4]} 16. Qc2 {[%clk 0:02:25.1]} 16... Nd7 {[%clk 0:01:58.2]} 17.
Qxc6 {[%clk 0:02:11.6]} 17... Qxc6 {[%clk 0:01:50]} 18. Nxc6 {[%clk 0:02:11.4]}
18... Nxb6 {[%clk 0:01:27.6]} 19. axb4 {[%clk 0:02:08]} 19... Nc4 {[%clk
0:01:27.4]} 20. Bc3 {[%clk 0:01:53.2]} 20... Nc7 {[%clk 0:01:24.5]} 21. Nc5
{[%clk 0:01:52.4]} 21... Rxa1 {[%clk 0:01:21.8]} 22. Rxa1 {[%clk 0:01:53.3]}
22... Nb5 {[%clk 0:01:21.6]} 23. Be1 {[%clk 0:01:54]} 23... Bb6 {[%clk
0:01:16.5]} 24. Nd7 {[%clk 0:01:47.1]} 24... Re8 {[%clk 0:01:11.8]} 25. Ra6
{[%clk 0:01:37.9]} 25... Bc7 {[%clk 0:01:10.3]} 26. Na5 {[%clk 0:01:19.5]} 26...
h6 {[%clk 0:01:09.1]} 27. Kf1 {[%clk 0:01:15.8]} 27... Rd8 {[%clk 0:00:58.1]}
28. Nxc4 {[%clk 0:00:56.7]} 28... Rxd7 {[%clk 0:00:55.2]} 29. Na3 {[%clk
0:00:53.3]} 29... Nxa3 {[%clk 0:00:50.6]} 30. Rxa3 {[%clk 0:00:54.2]} 30... Bd6
{[%clk 0:00:48.7]} 31. Ra6 {[%clk 0:00:52.6]} 31... Kf8 {[%clk 0:00:43.9]} 32.
b5 {[%clk 0:00:49.3]} 32... Ke8 {[%clk 0:00:44.4]} 33. Ba5 {[%clk 0:00:47.6]}
33... g6 {[%clk 0:00:39.4]} 34. Ke2 {[%clk 0:00:45.8]} 34... Ke7 {[%clk
0:00:39.8]} 35. b6 {[%clk 0:00:35]} 35... e5 {[%clk 0:00:31.4]} 36. dxe5 {[%clk
0:00:34.1]} 36... Bxe5 {[%clk 0:00:31.3]} 37. Kd3 {[%clk 0:00:34.4]} 37... h5
{[%clk 0:00:30.3]} 38. Bb4+ {[%clk 0:00:27.7]} 38... Bd6 {[%clk 0:00:27.7]} 39.
Ba5 {[%clk 0:00:19.2]} 39... Rb7 {[%clk 0:00:26.3]} 40. Ra7 {[%clk 0:00:19.2]}
40... Rxa7 {[%clk 0:00:25.9]} 41. bxa7 {[%clk 0:00:19.3]} 41... Kd7 {[%clk
0:00:26.5]} 42. a8=Q {[%clk 0:00:19.7]} 1-0

[Event "Early-Titled-Tuesday-Blitz-February-06-2024"]
[Site "Chess.com"]
[Date "2024.02.06"]
[Round "1"]
[White "Yeritsyaan"]
[Black "elgrona"]
[Result "1-0"]
[WhiteElo "2630"]
[BlackElo "2303"]
[TimeControl "180+1"]
[EndTime "8:07:30 PST"]
[Termination "Yeritsyaan won on time"]

1. Nf3 {[%clk 0:02:59.7]} 1... Nf6 {[%clk 0:02:57]} 2. c4 {[%clk 0:02:59.1]}
2... c6 {[%clk 0:02:55.1]} 3. e3 {[%clk 0:02:58.7]} 3... d5 {[%clk 0:02:55.1]}
4. b3 {[%clk 0:02:57.6]} 4... Bf5 {[%clk 0:02:49.1]} 5. Bb2 {[%clk 0:02:56.9]}
5... e6 {[%clk 0:02:47.4]} 6. Be2 {[%clk 0:02:51.8]} 6... h6 {[%clk 0:02:47.5]}
7. O-O {[%clk 0:02:50.1]} 7... Nbd7 {[%clk 0:02:45.3]} 8. d4 {[%clk 0:02:48]}
8... Bd6 {[%clk 0:02:43]} 9. Nc3 {[%clk 0:02:47.5]} 9... O-O {[%clk 0:02:40.9]}
10. Bd3 {[%clk 0:02:46.2]} 10... Bg4 {[%clk 0:02:07.8]} 11. h3 {[%clk
0:02:35.2]} 11... Bh5 {[%clk 0:02:07.7]} 12. e4 {[%clk 0:02:25.4]} 12... dxc4
{[%clk 0:01:58.6]} 13. Bxc4 {[%clk 0:02:19]} 13... e5 {[%clk 0:01:53.2]} 14.
dxe5 {[%clk 0:02:16]} 14... Nxe5 {[%clk 0:01:53.3]} 15. Be2 {[%clk 0:02:16.1]}
15... Bg6 {[%clk 0:01:47.1]} 16. Qc2 {[%clk 0:02:08.8]} 16... Re8 {[%clk
0:01:41]} 17. Rfd1 {[%clk 0:02:06.8]} 17... Nxf3+ {[%clk 0:01:38.2]} 18. Bxf3
{[%clk 0:02:05.9]} 18... Qc7 {[%clk 0:01:38.2]} 19. Re1 {[%clk 0:01:31.1]} 19...
Bh2+ {[%clk 0:01:31.5]} 20. Kh1 {[%clk 0:01:26.4]} 20... Bg3 {[%clk 0:01:32]}
21. fxg3 {[%clk 0:01:20.2]} 21... Qxg3 {[%clk 0:01:28.7]} 22. Ne2 {[%clk
0:01:13.1]} 22... Qh4 {[%clk 0:01:12.9]} 23. Bxf6 {[%clk 0:01:12.8]} 23... gxf6
{[%clk 0:01:04.9]} 24. Nc3 {[%clk 0:01:06]} 24... Re5 {[%clk 0:00:58.6]} 25.
Rad1 {[%clk 0:01:02.7]} 25... Rg5 {[%clk 0:00:55.1]} 26. Ne2 {[%clk 0:00:49.2]}
26... Re8 {[%clk 0:00:33.4]} 27. Ng1 {[%clk 0:00:49.1]} 27... Rg3 {[%clk
0:00:20.8]} 28. Qd2 {[%clk 0:00:41.6]} 28... Re5 {[%clk 0:00:16.3]} 29. Re3
{[%clk 0:00:39.3]} 29... Reg5 {[%clk 0:00:13.3]} 30. Rde1 {[%clk 0:00:30.1]}
30... f5 {[%clk 0:00:11.4]} 31. exf5 {[%clk 0:00:29.1]} 31... Bxf5 {[%clk
0:00:11.9]} 32. Re8+ {[%clk 0:00:29.6]} 32... Kh7 {[%clk 0:00:12.2]} 33. Qc3
{[%clk 0:00:26.4]} 33... Rg7 {[%clk 0:00:07]} 34. Qe5 {[%clk 0:00:13.4]} 34...
Bxh3 {[%clk 0:00:05.3]} 35. Qe4+ {[%clk 0:00:06.8]} 35... f5 {[%clk 0:00:04]}
36. Qxh4 {[%clk 0:00:06.6]} 1-0

[Event "Early-Titled-Tuesday-Blitz-February-06-2024"]
[Site "Chess.com"]
[Date "2024.02.06"]
[Round "1"]
[White "tarno17"]
[Black "Leebit02"]
[Result "0-1"]
[WhiteElo "2111"]
[BlackElo "2559"]
[TimeControl "180+1"]
[EndTime "8:07:30 PST"]
[Termination "Leebit02 won by resignation"]

1. e4 {[%clk 0:03:00.9]} 1... c5 {[%clk 0:02:59]} 2. Nf3 {[%clk 0:03:00.9]} 2...
e6 {[%clk 0:02:58.6]} 3. g3 {[%clk 0:02:52.1]} 3... Nc6 {[%clk 0:02:57.8]} 4.
Bg2 {[%clk 0:02:50.9]} 4... Nf6 {[%clk 0:02:50.5]} 5. d3 {[%clk 0:02:50.6]} 5...
Be7 {[%clk 0:02:46.4]} 6. e5 {[%clk 0:02:19.7]} 6... Ng4 {[%clk 0:02:45]} 7. Qe2
{[%clk 0:02:16.1]} 7... Qc7 {[%clk 0:02:42.2]} 8. Bf4 {[%clk 0:02:06.8]} 8... h5
{[%clk 0:02:22.9]} 9. h3 {[%clk 0:01:55.5]} 9... Nh6 {[%clk 0:02:22.9]} 10. Nc3
{[%clk 0:01:55.3]} 10... Nf5 {[%clk 0:02:19.8]} 11. Ne4 {[%clk 0:01:42.3]} 11...
b6 {[%clk 0:02:05.6]} 12. c3 {[%clk 0:01:28.5]} 12... Bb7 {[%clk 0:02:04.3]} 13.
g4 {[%clk 0:01:22]} 13... Nh6 {[%clk 0:01:42]} 14. Nd6+ {[%clk 0:01:07.6]} 14...
Bxd6 {[%clk 0:01:37.7]} 15. exd6 {[%clk 0:01:08.5]} 15... Qd8 {[%clk 0:01:34.6]}
16. Bg5 {[%clk 0:00:48.1]} 16... Qb8 {[%clk 0:01:30.6]} 17. Bf4 {[%clk
0:00:40.8]} 17... Qd8 {[%clk 0:01:26.9]} 18. Ne5 {[%clk 0:00:30.1]} 18... Qc8
{[%clk 0:00:47.3]} 19. Be4 {[%clk 0:00:08.3]} 19... Kf8 {[%clk 0:00:21.2]} 20.
O-O-O {[%clk 0:00:08.6]} 20... Nxe5 {[%clk 0:00:19.3]} 21. Bxe5 {[%clk
0:00:08.3]} 21... f6 {[%clk 0:00:18.3]} 22. Bf4 {[%clk 0:00:02.7]} 22... Nf7
{[%clk 0:00:18.5]} 23. g5 {[%clk 0:00:02.7]} 23... fxg5 {[%clk 0:00:15.2]} 24.
Bxb7 {[%clk 0:00:03.3]} 24... Qxb7 {[%clk 0:00:15.3]} 25. Be5 {[%clk 0:00:03.6]}
25... Qd5 {[%clk 0:00:15.2]} 26. d4 {[%clk 0:00:03.5]} 26... cxd4 {[%clk
0:00:14.5]} 27. Rxd4 {[%clk 0:00:03.7]} 27... Qxe5 {[%clk 0:00:14.3]} 28. Qd2
{[%clk 0:00:03]} 28... Rc8 {[%clk 0:00:13.2]} 29. Re1 {[%clk 0:00:03]} 29... Qf5
{[%clk 0:00:13.5]} 30. f4 {[%clk 0:00:02.6]} 30... g4 {[%clk 0:00:13.6]} 31.
hxg4 {[%clk 0:00:02.8]} 31... hxg4 {[%clk 0:00:14.2]} 32. Re5 {[%clk 0:00:03.1]}
32... Nxe5 {[%clk 0:00:14.2]} 33. fxe5 {[%clk 0:00:03]} 33... Kg8 {[%clk
0:00:14.8]} 34. Rf4 {[%clk 0:00:02.6]} 34... Qxe5 {[%clk 0:00:15]} 35. b3 {[%clk
0:00:02.1]} 35... Rh1+ {[%clk 0:00:14.3]} 36. Kb2 {[%clk 0:00:02.3]} 36... Re1
{[%clk 0:00:14.6]} 37. Rxg4 {[%clk 0:00:02.6]} 37... Re2 {[%clk 0:00:15]} 38.
Rg2 {[%clk 0:00:02.5]} 38... Rxd2+ {[%clk 0:00:15.3]} 39. Rxd2 {[%clk 0:00:02]}
39... Qxc3+ {[%clk 0:00:15.7]} 0-1

[Event "Early-Titled-Tuesday-Blitz-February-06-2024"]
[Site "Chess.com"]
[Date "2024.02.06"]
[Round "1"]
[White "BigAl"]
[Black "vi_pranav"]
[Result "0-1"]
[WhiteElo "2523"]
[BlackElo "3049"]
[TimeControl "180+1"]
[EndTime "8:07:31 PST"]
[Termination "vi_pranav won on time"]

1. Nf3 {[%clk 0:03:00.9]} 1... Nf6 {[%clk 0:02:59.4]} 2. g3 {[%clk 0:03:01.3]}
2... d5 {[%clk 0:02:59.1]} 3. Bg2 {[%clk 0:03:02.2]} 3... c6 {[%clk 0:02:59.4]}
4. O-O {[%clk 0:03:03.1]} 4... Bg4 {[%clk 0:02:59.4]} 5. d3 {[%clk 0:03:04]}
5... Nbd7 {[%clk 0:02:59]} 6. c4 {[%clk 0:03:04.6]} 6... e6 {[%clk 0:02:58.7]}
7. Be3 {[%clk 0:03:03.7]} 7... Be7 {[%clk 0:02:57.9]} 8. Qb3 {[%clk 0:03:03.5]}
8... Qc8 {[%clk 0:02:47.4]} 9. Nc3 {[%clk 0:03:03.8]} 9... O-O {[%clk
0:02:47.4]} 10. Rac1 {[%clk 0:03:02.5]} 10... h6 {[%clk 0:02:37.4]} 11. cxd5
{[%clk 0:02:57.4]} 11... exd5 {[%clk 0:02:36.9]} 12. h3 {[%clk 0:02:48.3]} 12...
Bxf3 {[%clk 0:02:36.3]} 13. Bxf3 {[%clk 0:02:47.1]} 13... Ne5 {[%clk 0:02:33.2]}
14. Bg2 {[%clk 0:02:46.4]} 14... Qd7 {[%clk 0:02:32.6]} 15. Bd4 {[%clk
0:02:35.1]} 15... Ng6 {[%clk 0:02:32]} 16. Na4 {[%clk 0:02:35.1]} 16... b6
{[%clk 0:02:27.9]} 17. Rfd1 {[%clk 0:02:25.4]} 17... Rfd8 {[%clk 0:02:10.5]} 18.
e4 {[%clk 0:02:23.1]} 18... c5 {[%clk 0:02:08.5]} 19. Bxf6 {[%clk 0:02:21]}
19... Bxf6 {[%clk 0:02:08.1]} 20. exd5 {[%clk 0:02:21.4]} 20... Ne7 {[%clk
0:02:03]} 21. Nc3 {[%clk 0:02:19.7]} 21... Rac8 {[%clk 0:02:00.2]} 22. d6 {[%clk
0:02:06.9]} 22... Nf5 {[%clk 0:01:58.9]} 23. Ne4 {[%clk 0:02:00.9]} 23... Bd4
{[%clk 0:01:58.9]} 24. Re1 {[%clk 0:01:46.2]} 24... Nxd6 {[%clk 0:01:56.5]} 25.
Re2 {[%clk 0:01:35.8]} 25... Nf5 {[%clk 0:01:50.7]} 26. Rce1 {[%clk 0:01:32]}
26... g6 {[%clk 0:01:43.9]} 27. Kh2 {[%clk 0:01:31.2]} 27... Bg7 {[%clk
0:01:42.9]} 28. Qd1 {[%clk 0:01:14.2]} 28... c4 {[%clk 0:01:36.7]} 29. d4 {[%clk
0:00:54.4]} 29... Nxd4 {[%clk 0:01:32.3]} 30. Rd2 {[%clk 0:00:49.2]} 30... f5
{[%clk 0:01:31.9]} 31. Nc3 {[%clk 0:00:48.2]} 31... Nf3+ {[%clk 0:01:29.1]} 32.
Bxf3 {[%clk 0:00:44.5]} 32... Qxd2 {[%clk 0:01:30]} 33. Re8+ {[%clk 0:00:44.5]}
33... Kf7 {[%clk 0:01:18.6]} 34. Qxd2 {[%clk 0:00:31.1]} 34... Rxd2 {[%clk
0:01:19.5]} 35. Rxc8 {[%clk 0:00:31.3]} 35... Rxf2+ {[%clk 0:01:19.2]} 36. Bg2
{[%clk 0:00:28]} 36... Rxb2 {[%clk 0:01:19]} 37. Rxc4 {[%clk 0:00:23.5]} 37...
Be5 {[%clk 0:01:16.9]} 38. Nd5 {[%clk 0:00:15.1]} 38... Rxa2 {[%clk 0:01:14.4]}
39. Rc6 {[%clk 0:00:11.5]} 39... g5 {[%clk 0:01:08.9]} 40. Nxb6 {[%clk
0:00:07.3]} 40... axb6 {[%clk 0:01:07.8]} 41. Rxb6 {[%clk 0:00:07.6]} 41... Ra3
{[%clk 0:01:04.4]} 42. Rxh6 {[%clk 0:00:06.2]} 42... Bxg3+ {[%clk 0:01:02.6]}
43. Kg1 {[%clk 0:00:06.9]} 43... f4 {[%clk 0:00:58.7]} 44. Rh7+ {[%clk
0:00:05.7]} 44... Kg6 {[%clk 0:00:57.5]} 45. Be4+ {[%clk 0:00:05.7]} 45... Kf6
{[%clk 0:00:57.8]} 46. Rh8 {[%clk 0:00:06]} 46... Ke5 {[%clk 0:00:54.9]} 47.
Re8+ {[%clk 0:00:05]} 47... Kd4 {[%clk 0:00:54.9]} 48. Bc6 {[%clk 0:00:01.2]}
48... Ra2 {[%clk 0:00:50.3]} 0-1

[Event "Early-Titled-Tuesday-Blitz-February-06-2024"]
[Site "Chess.com"]
[Date "2024.02.06"]
[Round "1"]
[White "OrtizAnahi2001"]
[Black "jcibarra"]
[Result "1-0"]
[WhiteElo "2616"]
[BlackElo "2868"]
[TimeControl "180+1"]
[EndTime "8:07:31 PST"]
[Termination "OrtizAnahi2001 won by checkmate"]

1. d4 {[%clk 0:02:59.6]} 1... Nf6 {[%clk 0:02:59.7]} 2. c4 {[%clk 0:02:59.4]}
2... d6 {[%clk 0:03:00.1]} 3. Nc3 {[%clk 0:02:58.8]} 3... e5 {[%clk 0:03:00.7]}
4. d5 {[%clk 0:02:58.3]} 4... Bf5 {[%clk 0:02:59.6]} 5. Nf3 {[%clk 0:02:57.1]}
5... a5 {[%clk 0:02:53.6]} 6. g3 {[%clk 0:02:47.7]} 6... h6 {[%clk 0:02:50.7]}
7. Bg2 {[%clk 0:02:47.6]} 7... Na6 {[%clk 0:02:51.4]} 8. O-O {[%clk 0:02:47.7]}
8... Be7 {[%clk 0:02:51.8]} 9. Nh4 {[%clk 0:02:45.9]} 9... Bh7 {[%clk
0:02:51.1]} 10. e4 {[%clk 0:02:45.5]} 10... O-O {[%clk 0:02:50]} 11. Re1 {[%clk
0:02:41.4]} 11... Nc5 {[%clk 0:02:48.4]} 12. b3 {[%clk 0:02:39]} 12... Re8
{[%clk 0:02:47.4]} 13. a3 {[%clk 0:02:37.1]} 13... a4 {[%clk 0:02:44.5]} 14. b4
{[%clk 0:02:35]} 14... Nb3 {[%clk 0:02:44.3]} 15. Rb1 {[%clk 0:02:35.2]} 15...
Nxc1 {[%clk 0:02:43.3]} 16. Rxc1 {[%clk 0:02:35.2]} 16... Nd7 {[%clk 0:02:41]}
17. Nf3 {[%clk 0:02:31.6]} 17... Nb6 {[%clk 0:02:39]} 18. Qe2 {[%clk 0:02:29.9]}
18... Bf8 {[%clk 0:02:37.6]} 19. Nb5 {[%clk 0:02:29]} 19... c6 {[%clk
0:02:35.2]} 20. Nc3 {[%clk 0:02:16.9]} 20... cxd5 {[%clk 0:02:32.8]} 21. Nxd5
{[%clk 0:02:15.1]} 21... Nxd5 {[%clk 0:02:30.8]} 22. cxd5 {[%clk 0:02:14.9]}
22... Qd7 {[%clk 0:02:30.8]} 23. Nd2 {[%clk 0:02:12.4]} 23... Rec8 {[%clk
0:02:22.5]} 24. Nc4 {[%clk 0:02:12.1]} 24... Qb5 {[%clk 0:02:10]} 25. Bf1 {[%clk
0:02:07.6]} 25... Rc7 {[%clk 0:02:05.2]} 26. Qe3 {[%clk 0:02:06.6]} 26... Qe8
{[%clk 0:02:04.4]} 27. Nb6 {[%clk 0:02:03.6]} 27... Rxc1 {[%clk 0:02:04.8]} 28.
Rxc1 {[%clk 0:02:03.2]} 28... Rb8 {[%clk 0:02:05.2]} 29. Rc7 {[%clk 0:02:01]}
29... Qd8 {[%clk 0:02:04]} 30. Rc4 {[%clk 0:01:48.9]} 30... Be7 {[%clk
0:01:58.8]} 31. f3 {[%clk 0:01:36.8]} 31... Bg5 {[%clk 0:01:51.6]} 32. Qf2
{[%clk 0:01:36.8]} 32... f5 {[%clk 0:01:50.5]} 33. Bd3 {[%clk 0:01:30.6]} 33...
f4 {[%clk 0:01:46.3]} 34. Bc2 {[%clk 0:01:25.3]} 34... fxg3 {[%clk 0:01:39.4]}
35. hxg3 {[%clk 0:01:25.2]} 35... h5 {[%clk 0:01:39.1]} 36. Bxa4 {[%clk
0:01:24.5]} 36... h4 {[%clk 0:01:38.6]} 37. Kg2 {[%clk 0:01:23.8]} 37... hxg3
{[%clk 0:01:38.2]} 38. Qg1 {[%clk 0:01:16.5]} 38... Bf4 {[%clk 0:01:36.4]} 39.
Nd7 {[%clk 0:01:07.5]} 39... Ra8 {[%clk 0:01:35.8]} 40. Nb6 {[%clk 0:01:04.2]}
40... Rb8 {[%clk 0:01:30.8]} 41. Nd7 {[%clk 0:01:04.1]} 41... Rc8 {[%clk
0:01:31.4]} 42. Qb6 {[%clk 0:01:04.1]} 42... Bg6 {[%clk 0:01:09.2]} 43. Rxc8
{[%clk 0:00:49.1]} 43... Qxc8 {[%clk 0:01:08.4]} 44. Qxd6 {[%clk 0:00:49.1]}
44... Qc3 {[%clk 0:00:59.3]} 45. Qxg6 {[%clk 0:00:30.6]} 45... Qd2+ {[%clk
0:00:55.6]} 46. Kh3 {[%clk 0:00:30.8]} 46... Qh2+ {[%clk 0:00:55.7]} 47. Kg4
{[%clk 0:00:31.1]} 47... Bg5 {[%clk 0:00:46.7]} 48. Qe8+ {[%clk 0:00:13.9]}
48... Kh7 {[%clk 0:00:46.1]} 49. Nf8+ {[%clk 0:00:14.2]} 49... Kg8 {[%clk
0:00:43.3]} 50. Ng6+ {[%clk 0:00:14.3]} 50... Kh7 {[%clk 0:00:42.8]} 51. Nf8+
{[%clk 0:00:14.4]} 51... Kg8 {[%clk 0:00:43.3]} 52. Ng6+ {[%clk 0:00:13.8]}
52... Kh7 {[%clk 0:00:43.8]} 53. Qh8+ {[%clk 0:00:13.4]} 53... Kxg6 {[%clk
0:00:43.9]} 54. Be8+ {[%clk 0:00:14]} 54... Kf6 {[%clk 0:00:43]} 55. Qf8# {[%clk
0:00:14.3]} 1-0

[Event "Early-Titled-Tuesday-Blitz-February-06-2024"]
[Site "Chess.com"]
[Date "2024.02.06"]
[Round "1"]
[White "GMT4114"]
[Black "bulletteemo"]
[Result "0-1"]
[WhiteElo "1967"]
[BlackElo "2542"]
[TimeControl "180+1"]
[EndTime "8:07:31 PST"]
[Termination "bulletteemo won on time"]

1. e4 {[%clk 0:03:00.9]} 1... c5 {[%clk 0:02:58]} 2. Nc3 {[%clk 0:03:01.2]} 2...
Nc6 {[%clk 0:02:53.2]} 3. Bb5 {[%clk 0:03:00.3]} 3... Nd4 {[%clk 0:02:53]} 4.
Nf3 {[%clk 0:03:00.3]} 4... a6 {[%clk 0:02:52.1]} 5. Bd3 {[%clk 0:02:59.5]} 5...
g6 {[%clk 0:02:52.7]} 6. Rb1 {[%clk 0:02:46.4]} 6... Bg7 {[%clk 0:02:50.5]} 7.
b4 {[%clk 0:02:46.1]} 7... cxb4 {[%clk 0:02:39.4]} 8. Rxb4 {[%clk 0:02:47]} 8...
Nc6 {[%clk 0:02:36.6]} 9. Rb1 {[%clk 0:02:42.1]} 9... Nf6 {[%clk 0:02:36]} 10.
O-O {[%clk 0:02:39.4]} 10... d5 {[%clk 0:02:13.7]} 11. exd5 {[%clk 0:02:16.2]}
11... Nxd5 {[%clk 0:02:12.8]} 12. Nxd5 {[%clk 0:02:15.2]} 12... Qxd5 {[%clk
0:02:13.7]} 13. Bb2 {[%clk 0:02:14.7]} 13... e5 {[%clk 0:01:49.7]} 14. Qe2
{[%clk 0:02:11.9]} 14... O-O {[%clk 0:01:47.6]} 15. Be4 {[%clk 0:02:09.2]} 15...
Qc5 {[%clk 0:01:33.3]} 16. h3 {[%clk 0:01:54.1]} 16... Re8 {[%clk 0:01:20.1]}
17. Rfe1 {[%clk 0:01:41.9]} 17... Bd7 {[%clk 0:01:19.4]} 18. Qd3 {[%clk
0:01:29.6]} 18... Rad8 {[%clk 0:01:15.6]} 19. Qb3 {[%clk 0:01:29.7]} 19... Na5
{[%clk 0:01:08.4]} 20. Qc3 {[%clk 0:01:15.2]} 20... Rc8 {[%clk 0:00:54]} 21.
Qxc5 {[%clk 0:01:13.7]} 21... Rxc5 {[%clk 0:00:54.9]} 22. Bc3 {[%clk 0:01:02.1]}
22... f5 {[%clk 0:00:49.7]} 23. Bxb7 {[%clk 0:00:57.8]} 23... e4 {[%clk
0:00:39.2]} 24. Bxg7 {[%clk 0:00:27.8]} 24... Kxg7 {[%clk 0:00:40.1]} 25. Nd4
{[%clk 0:00:22.2]} 25... Nc4 {[%clk 0:00:30.6]} 26. Bxa6 {[%clk 0:00:19]} 26...
Nxd2 {[%clk 0:00:24]} 27. Rb7 {[%clk 0:00:18.7]} 27... Rd5 {[%clk 0:00:24.1]}
28. Nb3 {[%clk 0:00:15.7]} 28... Kf6 {[%clk 0:00:20.5]} 29. Nxd2 {[%clk
0:00:12]} 29... Rxd2 {[%clk 0:00:20.4]} 30. Kf1 {[%clk 0:00:12.7]} 30... Ra8
{[%clk 0:00:19.5]} 31. Bc4 {[%clk 0:00:10.9]} 31... Be8 {[%clk 0:00:14.2]} 32.
Rxh7 {[%clk 0:00:09.5]} 32... Rxc2 {[%clk 0:00:13.8]} 33. Bb3 {[%clk 0:00:09.6]}
33... Rd2 {[%clk 0:00:13.8]} 34. h4 {[%clk 0:00:08.4]} 34... Rc8 {[%clk
0:00:13.2]} 35. g3 {[%clk 0:00:08.1]} 35... Rc3 {[%clk 0:00:12.7]} 36. Rh8
{[%clk 0:00:07.5]} 36... Bb5+ {[%clk 0:00:12.3]} 37. Kg1 {[%clk 0:00:06.9]}
37... Rf3 {[%clk 0:00:12.3]} 38. Rf8+ {[%clk 0:00:03.9]} 38... Ke5 {[%clk
0:00:11.5]} 0-1